[Event "1.FrauenBL 2018-19"]
[Site "Berlin"]
[Date "2019.03.01"]
[Round "9.2"]
[White "Roessler, Ulrike"]
[Black "Savina, Anastasia"]
[Result "1/2-1/2"]
[ECO "C24"]
[WhiteElo "2126"]
[BlackElo "2350"]
[Annotator "NA"]
[PlyCount "86"]
[EventDate "2018.10.27"]
[EventType "team-tourn"]
[EventCountry "GER"]
[SourceTitle "playchess.com"]
[Source "ChessBase"]
[SourceQuality "1"]
[WhiteTeam "Hofheim"]
[BlackTeam "Bad Koenigshofen"]
[TimeControl "40/5400+30:1800+30"]

1. e4 {[%emt 0:00:00]} e5 {[%emt 0:00:25]} 2. Bc4 {[%emt 0:00:09]} Nf6 {[%emt 0:00:41]} 3. d3 {[%emt 0:00:57]} c6 {[%emt 0:00:20]} 4. Nf3 {[%emt 0:00:00]} d5 {[%emt 0:00:27]} 5. Bb3 {[%emt 0:00:00]} a5 {[%emt 0:00:00]} 6. a4 {[%emt 0:00:23]} Bb4+ {[%emt 0:03:31]} 7. c3 {[%emt 0:03:55]} Bd6 {[%emt 0:00:04]} 8. Nbd2 {[%emt 0:00:00]} O-O {[%emt 0:05:23]} 9. O-O {[%emt 0:00:05]} Nbd7 {[%emt 0:07:25]} 10. Re1 {[%emt 0:12:47]} dxe4 {[%emt 0:00:00]} 11. Nxe4 {[%emt 0:00:00]} Nxe4 {[%emt 0:00:00]} 12. dxe4 {[%emt 0:00:00]} Nc5 {[%emt 0:00:00]} 13. Bg5 {[%emt 0:04:05]} Qc7 {[%emt 0:03:35]} 14. Bc4 {[%emt 0:00:31]} Bg4 {[%emt 0:18:45]} 15. h3 {[%emt 0:04:06]} Bh5 {[%emt 0:00:00]} 16. Qd2 {[%emt 0:08:41]} Bg6 {[%emt 0:25:15]} 17. Qc2 {[%emt 0:30:12]} Be7 {[%emt 0:00:59]} 18. b4 {[%emt 0:00:00]} Bxg5 {[%emt 0:05:28]} 19. Nxg5 {[%emt 0:00:00]} Qe7 {[%emt 0:00:00]} 20. bxc5 {[%emt 0:07:58]} Qxg5 21. Rab1 {[%emt 0:00:08]} Qe7 {[%emt 0:09:21]} 22. Qe2 {[%emt 0:00:00]} Qxc5 {[%emt 0:04:33]} 23. Rxb7 {[%emt 0:00:00]} Rab8 {[%emt 0:01:31]} 24. Reb1 {[%emt 0:00:00]} Rxb7 {[%emt 0:01:49]} 25. Rxb7 Qa3 {[%emt 0:06:17]} 26. Qc2 {[%emt 0:02:40]} h5 {[%emt 0:01:57]} 27. Kh2 {[%emt 0:01:19]} Rd8 {[%emt 0:02:19]} 28. f3 {[%emt 0:01:08]} Qd6 {[%emt 0:01:08]} 29. Qb3 {[%emt 0:01:02]} Qf6 {[%emt 0:01:02]} 30. Rb8 {[%emt 0:05:40]} Qf4+ {[%emt 0:00:38]} 31. Kh1 {[%emt 0:00:13]} Qc1+ {[%emt 0:00:25]} 32. Kh2 {[%emt 0:17:19]} Qf4+ {[%emt 0:00:00]} 33. Kh1 {[%emt 0:00:00]} Rxb8 {[%emt 0:00:00]} 34. Qxb8+ {[%emt 0:00:00]} Kh7 {[%emt 0:01:36]} 35. Qb3 {[%emt 0:00:00]} Qc1+ {[%emt 0:00:19]} 36. Kh2 {[%emt 0:00:00]} Qf4+ {[%emt 0:00:00]} 37. Kg1 {[%emt 0:00:00]} Kh6 {[%emt 0:02:52]} 38. Ba6 {[%emt 0:00:00]} Qe3+ {[%emt 0:00:46]} 39. Kf1 {[%emt 0:05:33]} Kg5 {[%emt 0:00:28]} 40. Qa3 {[%emt 0:00:00]} Kf4 {[%emt 0:00:00]} 41. Qe7 {[%emt 0:21:58]} Qc1+ {[%emt 0:00:00]} 42. Kf2 {[%emt 0:00:00]} Qe3+ {[%emt 0:12:14]} 43. Kf1 {[%emt 0:00:00]} Qc1+ {[%emt 0:00:00]} 1/2-1/2

[Event "1.FrauenBL 2018-19"]
[Site "Berlin"]
[Date "2019.03.01"]
[Round "9.3"]
[White "Obolentseva, Alexandra"]
[Black "Kushka, Alena"]
[Result "1-0"]
[ECO "A65"]
[WhiteElo "2324"]
[BlackElo "2158"]
[Annotator "NA"]
[PlyCount "77"]
[EventDate "2018.10.27"]
[EventType "team-tourn"]
[EventCountry "GER"]
[SourceTitle "playchess.com"]
[Source "ChessBase"]
[SourceQuality "1"]
[WhiteTeam "Bad Koenigshofen"]
[BlackTeam "Hofheim"]
[TimeControl "40/5400+30:1800+30"]

1. d4 {[%emt 0:00:07]} Nf6 {[%emt 0:00:06]} 2. c4 {[%emt 0:00:08]} c5 {[%emt 0:00:13]} 3. d5 {[%emt 0:00:15]} g6 {[%emt 0:00:12]} 4. Nc3 {[%emt 0:00:14]} Bg7 {[%emt 0:00:06]} 5. e4 {[%emt 0:00:07]} d6 {[%emt 0:00:08]} 6. Nge2 {[%emt 0:01:05]} O-O {[%emt 0:00:55]} 7. Ng3 {[%emt 0:00:10]} e6 {[%emt 0:00:46]} 8. Be2 {[%emt 0:00:10]} exd5 {[%emt 0:00:07]} 9. cxd5 {[%emt 0:00:06]} Na6 {[%emt 0:01:58]} 10. O-O {[%emt 0:00:47]} Nc7 {[%emt 0:01:09]} 11. a4 {[%emt 0:00:17]} b6 {[%emt 0:01:26]} 12. Re1 {[%emt 0:00:51]} Ba6 {[%emt 0:01:01]} 13. Bxa6 {[%emt 0:04:26]} Nxa6 {[%emt 0:00:11]} 14. f4 {[%emt 0:00:33]} Nb4 {[%emt 0:05:26]} 15. Be3 {[%emt 0:03:38]} h5 {[%emt 0:05:02]} 16. h3 {[%emt 0:00:07]} Re8 17. Bf2 {[%emt 0:04:29]} a6 {[%emt 0:18:03]} 18. Qd2 {[%emt 0:01:30]} h4 {[%emt 0:08:58]} 19. Nh1 {[%emt 0:03:12]} Nh5 {[%emt 0:01:56]} 20. Rad1 {[%emt 0:01:03]} Ra7 {[%emt 0:04:40]} 21. g4 {[%emt 0:06:59]} hxg3 {[%emt 0:01:34]} 22. Nxg3 {[%emt 0:00:07]} Qh4 {[%emt 0:04:11]} 23. Nxh5 {[%emt 0:00:59]} Qxh5 {[%emt 0:00:05]} 24. Kg2 {[%emt 0:00:37]} Rae7 {[%emt 0:05:00]} 25. Ne2 {[%emt 0:00:49]} Qh8 {[%emt 0:05:08]} 26. Ng3 {[%emt 0:00:17]} Bxb2 {[%emt 0:14:00]} 27. e5 {[%emt 0:00:25]} Bxe5 {[%emt 0:00:21]} 28. fxe5 {[%emt 0:00:07]} Rxe5 {[%emt 0:00:12]} 29. Rxe5 {[%emt 0:03:05]} Rxe5 {[%emt 0:00:33]} 30. Bd4 {[%emt 0:01:05]} cxd4 {[%emt 0:01:09]} 31. Qxb4 {[%emt 0:00:05]} Rxd5 32. Qxb6 {[%emt 0:00:07]} Qh4 {[%emt 0:10:13]} 33. Qxa6 {[%emt 0:03:02]} Rg5 {[%emt 0:04:07]} 34. Qd3 {[%emt 0:00:09]} f5 {[%emt 0:01:16]} 35. Kh2 {[%emt 0:10:52]} d5 {[%emt 0:00:50]} 36. Qf3 {[%emt 0:00:32]} Kh7 {[%emt 0:03:00]} 37. a5 {[%emt 0:00:49]} d3 {[%emt 0:01:58]} 38. Rxd3 {[%emt 0:00:06]} Qa4 {[%emt 0:00:49]} 39. Rxd5 {[%emt 0:00:24]} 1-0

[Event "1.FrauenBL 2018-19"]
[Site "Berlin"]
[Date "2019.03.01"]
[Round "9.3"]
[White "Kachiani-Gersinska, Ketino"]
[Black "Schmidt, Jessica"]
[Result "1/2-1/2"]
[ECO "A36"]
[WhiteElo "2304"]
[BlackElo "2240"]
[Annotator "NA"]
[PlyCount "132"]
[EventDate "2018.10.27"]
[EventType "team-tourn"]
[EventCountry "GER"]
[SourceTitle "playchess.com"]
[Source "ChessBase"]
[SourceQuality "1"]
[WhiteTeam "OSG Baden-Baden"]
[BlackTeam "Karlsruher SF"]
[TimeControl "40/5400+30:1800+30"]

1. c4 {[%emt 0:00:18]} e5 {[%emt 0:00:30]} 2. g3 {[%emt 0:00:12]} c5 {[%emt 0:00:22]} 3. Bg2 {[%emt 0:00:22]} Nc6 {[%emt 0:00:00]} 4. Nc3 {[%emt 0:00:25]} Nf6 {[%emt 0:00:44]} 5. d3 {[%emt 0:00:19]} d6 {[%emt 0:00:33]} 6. Bg5 {[%emt 0:11:44]} Be7 {[%emt 0:10:41]} 7. Bxf6 {[%emt 0:00:07]} Bxf6 {[%emt 0:00:07]} 8. e3 {[%emt 0:00:07]} O-O {[%emt 0:00:07]} 9. Nge2 {[%emt 0:00:00]} Be6 {[%emt 0:00:34]} 10. Nd5 {[%emt 0:11:10]} Bxd5 {[%emt 0:10:36]} 11. Bxd5 {[%emt 0:01:03]} Qd7 {[%emt 0:00:00]} 12. Nc3 {[%emt 0:01:09]} Bd8 {[%emt 0:01:04]} 13. O-O {[%emt 0:00:00]} Ba5 {[%emt 0:00:51]} 14. Ne2 {[%emt 0:12:38]} Rab8 {[%emt 0:02:02]} 15. Qa4 {[%emt 0:07:28]} Qc7 {[%emt 0:07:06]} 16. a3 {[%emt 0:02:11]} a6 {[%emt 0:09:31]} 17. Qc2 {[%emt 0:10:56]} Ne7 {[%emt 0:08:58]} 18. Bg2 {[%emt 0:00:54]} b5 {[%emt 0:04:51]} 19. b3 {[%emt 0:00:06]} h6 {[%emt 0:02:54]} 20. Rfc1 {[%emt 0:00:22]} Qd7 {[%emt 0:03:09]} 21. Rab1 {[%emt 0:01:09]} Rfc8 {[%emt 0:00:00]} 22. Qd1 {[%emt 0:04:28]} Nc6 {[%emt 0:11:00]} 23. h3 {[%emt 0:08:32]} Rc7 {[%emt 0:02:07]} 24. g4 {[%emt 0:00:00]} Rcc8 {[%emt 0:02:29]} 25. Ng3 {[%emt 0:00:00]} Bd8 {[%emt 0:01:16]} 26. Qf3 {[%emt 0:01:14]} Ne7 {[%emt 0:00:00]} 27. b4 {[%emt 0:07:46]} Qe6 {[%emt 0:10:14]} 28. Qe2 {[%emt 0:07:06]} cxb4 {[%emt 0:06:53]} 29. axb4 {[%emt 0:00:00]} a5 {[%emt 0:00:17]} 30. bxa5 {[%emt 0:02:53]} Bxa5 {[%emt 0:00:18]} 31. cxb5 {[%emt 0:00:23]} Rxc1+ {[%emt 0:00:49]} 32. Rxc1 {[%emt 0:05:01]} Rxb5 {[%emt 0:00:21]} 33. d4 {[%emt 0:00:00]} Rb8 {[%emt 0:03:15]} 34. Qa6 {[%emt 0:00:00]} Bd2 {[%emt 0:00:33]} 35. Rc2 {[%emt 0:04:09]} Be1 {[%emt 0:00:00]} 36. dxe5 {[%emt 0:00:00]} dxe5 {[%emt 0:02:05]} 37. Qxe6 {[%emt 0:00:09]} fxe6 {[%emt 0:00:01]} 38. Kf1 {[%emt 0:01:19]} Bb4 {[%emt 0:00:00]} 39. Rc7 {[%emt 0:00:55]} Rd8 {[%emt 0:01:48]} 40. Be4 {[%emt 0:01:31]} Kf8 {[%emt 0:00:00]} 41. Rb7 {[%emt 0:30:15]} Bd6 {[%emt 0:00:00]} 42. Bc2 {[%emt 0:00:00]} Nd5 {[%emt 0:04:19]} 43. Bb3 {[%emt 0:00:00]} Be7 {[%emt 0:05:11]} 44. Nh5 {[%emt 0:00:00]} g6 {[%emt 0:00:00]} 45. Ng3 {[%emt 0:00:00]} Kf7 {[%emt 0:06:46]} 46. Ne4 {[%emt 0:00:00]} Kf8 {[%emt 0:01:20]} 47. Kg2 {[%emt 0:00:00]} Rc8 {[%emt 0:02:01]} 48. Kg3 {[%emt 0:00:00]} Rd8 {[%emt 0:01:51]} 49. h4 {[%emt 0:00:00]} Rc8 {[%emt 0:02:46]} 50. g5 {[%emt 0:00:00]} hxg5 {[%emt 0:00:37]} 51. Nxg5 {[%emt 0:00:00]} Bxg5 {[%emt 0:00:08]} 52. hxg5 {[%emt 0:00:00]} Rc1 {[%emt 0:00:40]} 53. Kg2 {[%emt 0:00:00]} Rc5 {[%emt 0:00:33]} 54. Kf3 {[%emt 0:00:00]} Ra5 {[%emt 0:01:00]} 55. Bc2 {[%emt 0:00:00]} Ne7 {[%emt 0:00:06]} 56. Rc7 {[%emt 0:00:00]} e4+ {[%emt 0:02:10]} 57. Kxe4 {[%emt 0:02:15]} Rxg5 {[%emt 0:00:06]} 58. Bb3 {[%emt 0:00:05]} Kf7 {[%emt 0:01:42]} 59. Rb7 {[%emt 0:00:00]} Rc5 {[%emt 0:03:33]} 60. f4 {[%emt 0:00:25]} Kf6 {[%emt 0:00:46]} 61. Rb6 {[%emt 0:00:32]} Rc6 {[%emt 0:00:00]} 62. Rb5 {[%emt 0:02:18]} Nf5 {[%emt 0:00:41]} 63. Kd3 {[%emt 0:00:26]} Rd6+ {[%emt 0:00:06]} 64. Ke2 {[%emt 0:00:00]} Rc6 {[%emt 0:00:27]} 65. Kd3 {[%emt 0:00:33]} Rd6+ {[%emt 0:00:00]} 66. Ke2 {[%emt 0:00:00]} Rc6 {[%emt 0:00:08]} 1/2-1/2

[Event "1.FrauenBL 2018-19"]
[Site "Berlin"]
[Date "2019.03.01"]
[Round "9.3"]
[White "Stangl, Anita"]
[Black "Korenova, Martina"]
[Result "1-0"]
[ECO "B07"]
[WhiteElo "2008"]
[BlackElo "2172"]
[Annotator "NA"]
[PlyCount "77"]
[EventDate "2018.10.27"]
[EventType "team-tourn"]
[EventCountry "GER"]
[SourceTitle "playchess.com"]
[Source "ChessBase"]
[SourceQuality "1"]
[WhiteTeam "FC Bayern Muenchen"]
[BlackTeam "Rodewischer SM"]
[TimeControl "40/5400+30:1800+30"]

1. e4 {[%emt 0:00:00]} g6 {[%emt 0:00:50]} 2. d4 {[%emt 0:01:56]} Bg7 {[%emt 0:00:45]} 3. Nc3 {[%emt 0:03:24]} d6 {[%emt 0:03:07]} 4. Be3 {[%emt 0:01:22]} Nf6 {[%emt 0:01:34]} 5. f3 {[%emt 0:00:37]} O-O {[%emt 0:00:33]} 6. Qd2 {[%emt 0:01:03]} e5 {[%emt 0:07:52]} 7. Nge2 {[%emt 0:09:56]} c6 {[%emt 0:08:14]} 8. O-O-O {[%emt 0:02:07]} Qa5 {[%emt 0:01:02]} 9. g4 {[%emt 0:07:23]} b5 {[%emt 0:04:08]} 10. a3 {[%emt 0:00:17]} Na6 {[%emt 0:18:20]} 11. h4 {[%emt 0:11:55]} b4 {[%emt 0:03:04]} 12. Nb1 {[%emt 0:03:43]} h5 {[%emt 0:05:12]} 13. gxh5 {[%emt 0:13:40]} Nxh5 {[%emt 0:02:12]} 14. Rg1 {[%emt 0:06:12]} Rb8 {[%emt 0:03:22]} 15. Ng3 {[%emt 0:08:42]} Nf4 {[%emt 0:19:26]} 16. h5 {[%emt 0:22:01]} Bh6 {[%emt 0:00:12]} 17. hxg6 fxg6 {[%emt 0:00:06]} 18. Nh5 {[%emt 0:01:30]} Kh7 {[%emt 0:08:25]} 19. Nxf4 {[%emt 0:00:38]} exf4 {[%emt 0:07:32]} 20. Bf2 {[%emt 0:00:06]} Qb6 {[%emt 0:00:00]} 21. d5 {[%emt 0:00:54]} c5 {[%emt 0:00:00]} 22. a4 {[%emt 0:01:26]} Bd7 {[%emt 0:02:56]} 23. b3 {[%emt 0:00:02]} Nc7 {[%emt 0:00:00]} 24. Bc4 {[%emt 0:00:22]} Ne8 {[%emt 0:00:00]} 25. Bh4 {[%emt 0:01:12]} Ng7 {[%emt 0:01:07]} 26. Qh2 {[%emt 0:01:21]} Nh5 {[%emt 0:01:20]} 27. Rg2 {[%emt 0:00:29]} Be8 {[%emt 0:00:03]} 28. Rdg1 {[%emt 0:00:22]} Qc7 {[%emt 0:00:19]} 29. Bd3 {[%emt 0:00:28]} Ng3 {[%emt 0:01:21]} 30. Bg5 {[%emt 0:00:00]} Qg7 {[%emt 0:00:11]} 31. Qh4 {[%emt 0:00:39]} Bd7 {[%emt 0:01:15]} 32. Rh2 {[%emt 0:00:41]} Nh5 {[%emt 0:00:17]} 33. Be7 {[%emt 0:00:17]} Rf6 {[%emt 0:01:30]} 34. Bxf6 {[%emt 0:00:30]} Qxf6 {[%emt 0:00:07]} 35. Qxf6 Nxf6 {[%emt 0:00:01]} 36. e5 {[%emt 0:00:59]} Ng8 37. Rgh1 Bc8 38. Rh5 Ra8 39. Z0 {Qd2+ [%clk ]} 1-0

[Event "1.FrauenBL 2018-19"]
[Site "Berlin"]
[Date "2019.03.01"]
[Round "9.4"]
[White "Hoolt, Sarah"]
[Black "Antolak, Julia"]
[Result "0-1"]
[ECO "B20"]
[WhiteElo "2324"]
[BlackElo "2207"]
[Annotator "NA"]
[PlyCount "112"]
[EventDate "2018.10.27"]
[EventType "team-tourn"]
[EventCountry "GER"]
[SourceTitle "playchess.com"]
[Source "ChessBase"]
[SourceQuality "1"]
[WhiteTeam "Hamburger SK"]
[BlackTeam "TuRa Harksheide"]
[TimeControl "40/5400+30:1800+30"]

1. e4 {[%emt 0:00:03]} c5 {[%emt 0:00:12]} 2. d3 {[%emt 0:00:06]} Nc6 {[%emt 0:00:37]} 3. g3 {[%emt 0:00:08]} g6 {[%emt 0:00:58]} 4. Bg2 {[%emt 0:00:06]} Bg7 {[%emt 0:00:18]} 5. f4 {[%emt 0:00:07]} d6 {[%emt 0:00:54]} 6. Nf3 {[%emt 0:00:08]} e6 {[%emt 0:00:19]} 7. c3 {[%emt 0:00:23]} Nge7 {[%emt 0:01:08]} 8. O-O {[%emt 0:00:08]} O-O {[%emt 0:01:03]} 9. Be3 {[%emt 0:00:06]} f5 {[%emt 0:15:17]} 10. Nbd2 {[%emt 0:03:25]} b6 {[%emt 0:03:00]} 11. Re1 {[%emt 0:06:34]} Qd7 {[%emt 0:06:20]} 12. Qb3 {[%emt 0:07:41]} h6 {[%emt 0:05:14]} 13. d4 {[%emt 0:06:30]} fxe4 {[%emt 0:05:51]} 14. Nxe4 {[%emt 0:01:08]} d5 {[%emt 0:06:22]} 15. Nf2 {[%emt 0:02:52]} Nf5 {[%emt 0:02:58]} 16. Qd1 {[%emt 0:09:05]} Ba6 {[%emt 0:08:36]} 17. Qd2 {[%emt 0:11:13]} cxd4 {[%emt 0:02:41]} 18. Bxd4 {[%emt 0:02:47]} Ncxd4 {[%emt 0:02:24]} 19. Nxd4 {[%emt 0:06:16]} Bxd4 {[%emt 0:05:57]} 20. cxd4 {[%emt 0:00:06]} Rac8 {[%emt 0:01:50]} 21. g4 {[%emt 0:07:19]} Nh4 {[%emt 0:04:10]} 22. Bh1 {[%emt 0:06:16]} Rf6 {[%emt 0:06:38]} 23. Re5 {[%emt 0:08:09]} Rcf8 {[%emt 0:01:41]} 24. Nh3 {[%emt 0:05:49]} g5 {[%emt 0:01:22]} 25. f5 {[%emt 0:00:20]} exf5 {[%emt 0:00:49]} 26. Nxg5 {[%emt 0:11:27]} fxg4 {[%emt 0:03:57]} 27. Bg2 {[%emt 0:04:42]} Nxg2 {[%emt 0:01:36]} 28. Kxg2 {[%emt 0:00:09]} Rf2+ {[%emt 0:01:47]} 29. Qxf2 {[%emt 0:00:05]} Rxf2+ {[%emt 0:00:02]} 30. Kxf2 {[%emt 0:00:06]} hxg5 {[%emt 0:00:07]} 31. Rxg5+ {[%emt 0:00:10]} Kh7 {[%emt 0:01:19]} 32. Kg3 {[%emt 0:01:59]} Be2 {[%emt 0:00:51]} 33. Rc1 {[%emt 0:00:56]} Qf7 {[%emt 0:01:58]} 34. Rc3 {[%emt 0:00:11]} Qf1 {[%emt 0:02:49]} 35. Rxd5 {[%emt 0:00:47]} Qg1+ {[%emt 0:02:49]} 36. Kf4 {[%emt 0:00:01]} Qxh2+ {[%emt 0:00:31]} 37. Ke3 {[%emt 0:00:01]} Bf3 {[%emt 0:02:54]} 38. Rd7+ {[%emt 0:00:18]} Kg6 {[%emt 0:00:11]} 39. Rcc7 {[%emt 0:00:22]} Qe2+ {[%emt 0:01:09]} 40. Kf4 {[%emt 0:00:03]} Qe4+ {[%emt 0:00:33]} 41. Kg3 {[%emt 0:30:03]} Qe1+ {[%emt 0:04:37]} 42. Kf4 {[%emt 0:00:00]} Qd2+ {[%emt 0:02:40]} 43. Kg3 {[%emt 0:00:00]} Qg2+ {[%emt 0:01:04]} 44. Kf4 {[%emt 0:00:00]} Qh2+ {[%emt 0:00:16]} 45. Ke3 {[%emt 0:00:00]} Bd5 {[%emt 0:01:01]} 46. Rxa7 {[%emt 0:00:00]} Qg3+ {[%emt 0:02:03]} 47. Kd2 {[%emt 0:00:00]} Qf4+ {[%emt 0:00:56]} 48. Kc2 {[%emt 0:00:00]} Qe4+ {[%emt 0:02:09]} 49. Kc1 {[%emt 0:00:00]} Qe3+ {[%emt 0:02:46]} 50. Kc2 {[%emt 0:00:00]} Be4+ {[%emt 0:01:40]} 51. Kd1 {[%emt 0:00:00]} g3 {[%emt 0:01:21]} 52. Rg7+ {[%emt 0:00:00]} Kh6 {[%emt 0:00:14]} 53. Rg8 {[%emt 0:00:00]} Qxd4+ {[%emt 0:01:37]} 54. Ke1 {[%emt 0:00:00]} Qf2+ {[%emt 0:00:29]} 55. Kd1 {[%emt 0:00:00]} Bf3+ {[%emt 0:00:16]} 56. Kc1 {[%emt 0:00:00]} Qc5+ {[%emt 0:00:12]} 0-1

[Event "1.FrauenBL 2018-19"]
[Site "Berlin"]
[Date "2019.03.01"]
[Round "9.4"]
[White "Heinatz, Gundula"]
[Black "Arakhamia-Grant, Ketevan"]
[Result "1/2-1/2"]
[ECO "D79"]
[WhiteElo "2174"]
[BlackElo "2359"]
[Annotator "NA"]
[PlyCount "104"]
[EventDate "2018.10.27"]
[EventType "team-tourn"]
[EventCountry "GER"]
[SourceTitle "playchess.com"]
[Source "ChessBase"]
[SourceQuality "1"]
[WhiteTeam "Karlsruher SF"]
[BlackTeam "OSG Baden-Baden"]
[TimeControl "40/5400+30:1800+30"]

1. d4 {[%emt 0:00:15]} d5 {[%emt 0:00:23]} 2. Nf3 {[%emt 0:00:12]} Nf6 {[%emt 0:00:08]} 3. g3 {[%emt 0:00:14]} g6 {[%emt 0:01:38]} 4. Bg2 {[%emt 0:00:08]} Bg7 {[%emt 0:00:05]} 5. O-O {[%emt 0:00:04]} O-O {[%emt 0:00:30]} 6. c4 {[%emt 0:00:20]} c6 {[%emt 0:04:44]} 7. cxd5 {[%emt 0:01:06]} cxd5 {[%emt 0:00:09]} 8. Nc3 {[%emt 0:00:07]} e6 {[%emt 0:02:37]} 9. Bf4 {[%emt 0:11:00]} Nc6 {[%emt 0:02:12]} 10. Ne5 {[%emt 0:05:55]} Nh5 {[%emt 0:09:53]} 11. Nxc6 {[%emt 0:04:22]} bxc6 {[%emt 0:01:23]} 12. Be3 {[%emt 0:01:13]} Rb8 {[%emt 0:27:39]} 13. Na4 {[%emt 0:05:04]} Qa5 {[%emt 0:08:18]} 14. a3 {[%emt 0:04:38]} c5 {[%emt 0:02:23]} 15. Nxc5 {[%emt 0:02:26]} Rxb2 {[%emt 0:00:42]} 16. Qd3 {[%emt 0:00:56]} Rd8 {[%emt 0:16:26]} 17. Rfb1 {[%emt 0:16:31]} Rxb1+ {[%emt 0:00:50]} 18. Rxb1 {[%emt 0:02:26]} e5 {[%emt 0:00:21]} 19. Bd2 {[%emt 0:05:37]} Qc7 {[%emt 0:00:42]} 20. Qb5 {[%emt 0:05:48]} Qe7 {[%emt 0:08:12]} 21. Ba5 {[%emt 0:04:28]} Rf8 {[%emt 0:02:24]} 22. dxe5 {[%emt 0:03:25]} Qxe5 {[%emt 0:02:20]} 23. Nd3 {[%emt 0:02:24]} Qxe2 {[%emt 0:03:09]} 24. Re1 {[%emt 0:00:54]} Qg4 {[%emt 0:01:20]} 25. Bb4 {[%emt 0:02:51]} Bd7 {[%emt 0:01:05]} 26. Qxd5 {[%emt 0:00:29]} Be6 {[%emt 0:03:14]} 27. Qa5 {[%emt 0:03:22]} Rc8 {[%emt 0:00:11]} 28. Qxa7 {[%emt 0:04:25]} h6 {[%emt 0:00:20]} 29. Qb7 {[%emt 0:05:07]} Rc2 {[%emt 0:00:17]} 30. Qe4 {[%emt 0:04:06]} Nf6 {[%emt 0:00:36]} 31. Qa8+ {[%emt 0:02:25]} Kh7 {[%emt 0:00:44]} 32. Qa4 {[%emt 0:02:05]} Ra2 {[%emt 0:00:39]} 33. Qc6 {[%emt 0:01:18]} Qd4 {[%emt 0:00:40]} 34. Qc3 {[%emt 0:00:57]} Ng4 {[%emt 0:00:40]} 35. Qxd4 Bxd4 {[%emt 0:00:02]} 36. Bc5 {[%emt 0:00:58]} Bxc5 {[%emt 0:00:57]} 37. Nxc5 {[%emt 0:00:01]} Bc4 {[%emt 0:00:24]} 38. Ne4 {[%emt 0:00:52]} Bd3 {[%emt 0:00:40]} 39. h3 {[%emt 0:00:33]} Bxe4 {[%emt 0:00:27]} 40. Rxe4 {[%emt 0:00:38]} Nxf2 {[%emt 0:00:32]} 41. Rf4 {[%emt 0:30:34]} Nd3 {[%emt 0:02:47]} 42. Rxf7+ {[%emt 0:00:00]} Kh8 {[%emt 0:01:18]} 43. Rf8+ {[%emt 0:00:00]} Kg7 {[%emt 0:00:45]} 44. Rf7+ {[%emt 0:00:00]} Kh8 {[%emt 0:00:16]} 45. Ra7 {[%emt 0:00:00]} Nc5 {[%emt 0:03:32]} 46. Bc6 {[%emt 0:00:00]} g5 {[%emt 0:04:51]} 47. a4 {[%emt 0:00:00]} h5 {[%emt 0:01:39]} 48. a5 {[%emt 0:00:00]} Ra3 {[%emt 0:08:51]} 49. Kg2 {[%emt 0:00:00]} Ra2+ {[%emt 0:01:08]} 50. Kf3 {[%emt 0:00:00]} Ra3+ {[%emt 0:00:08]} 51. Kg2 {[%emt 0:00:00]} Ra2+ {[%emt 0:00:06]} 52. Kf3 {[%emt 0:00:00]} Ra3+ {[%emt 0:00:03]} 1/2-1/2

[Event "1.FrauenBL 2018-19"]
[Site "Berlin"]
[Date "2019.03.01"]
[Round "9.4"]
[White "Kubikova, Hana"]
[Black "Spiel, Marianne"]
[Result "1-0"]
[ECO "D46"]
[WhiteElo "2058"]
[BlackElo "1901"]
[Annotator "NA"]
[PlyCount "57"]
[EventDate "2018.10.27"]
[EventType "team-tourn"]
[EventCountry "GER"]
[SourceTitle "playchess.com"]
[Source "ChessBase"]
[SourceQuality "1"]
[WhiteTeam "Rodewischer SM"]
[BlackTeam "FC Bayern Muenchen"]
[TimeControl "40/5400+30:1800+30"]

1. d4 {[%emt 0:00:17]} Nf6 {[%emt 0:00:07]} 2. Nf3 {[%emt 0:00:15]} d5 {[%emt 0:00:16]} 3. c4 {[%emt 0:00:40]} e6 {[%emt 0:00:46]} 4. Nc3 {[%emt 0:01:42]} c6 {[%emt 0:00:26]} 5. e3 {[%emt 0:01:11]} Bd6 {[%emt 0:00:19]} 6. Bd3 {[%emt 0:00:37]} O-O {[%emt 0:01:03]} 7. O-O {[%emt 0:00:30]} Nbd7 {[%emt 0:00:25]} 8. Re1 {[%emt 0:03:25]} e5 {[%emt 0:16:21]} 9. cxd5 {[%emt 0:05:58]} cxd5 {[%emt 0:01:12]} 10. e4 {[%emt 0:10:40]} dxe4 {[%emt 0:02:03]} 11. Nxe4 {[%emt 0:01:04]} Nxe4 {[%emt 0:00:28]} 12. Rxe4 {[%emt 0:02:52]} f5 {[%emt 0:13:44]} 13. Rh4 {[%emt 0:03:03]} Be7 {[%emt 0:06:52]} 14. Bc4+ {[%emt 0:06:53]} Kh8 {[%emt 0:00:23]} 15. Rh3 {[%emt 0:05:06]} f4 {[%emt 0:17:05]} 16. Nxe5 {[%emt 0:01:12]} Qe8 {[%emt 0:04:12]} 17. Qd3 Nf6 {[%emt 0:06:22]} 18. Bb5 {[%emt 0:06:42]} Qd8 {[%emt 0:02:06]} 19. Ng6+ {[%emt 0:03:00]} Kg8 {[%emt 0:00:20]} 20. Bc4+ {[%emt 0:01:35]} Rf7 {[%emt 0:00:20]} 21. Ne5 {[%emt 0:04:58]} Bxh3 {[%emt 0:00:15]} 22. Nxf7 {[%emt 0:00:26]} Qa5 {[%emt 0:00:49]} 23. Bd2 {[%emt 0:00:57]} Qb6 {[%emt 0:00:48]} 24. Ng5+ {[%emt 0:01:48]} Kf8 {[%emt 0:01:03]} 25. Nxh3 {[%emt 0:02:16]} Rd8 {[%emt 0:10:07]} 26. Nxf4 {[%emt 0:01:46]} Ke8 {[%emt 0:00:13]} 27. Bb5+ {[%emt 0:01:21]} Kf8 {[%emt 0:00:41]} 28. Qb3 {[%emt 0:01:40]} Rd6 {[%emt 0:02:29]} 29. Rc1 {[%emt 0:00:50]} 1-0